bitfinex-derivatives/quotes_ETHF0:USTF0_20250629
["timestamp","ask_amount","ask_price","bid_price","bid_amount"]
[1751195126100,0.94550795,2457.4,2457.2,3.85939961]
[1751195126405,0.7014,2457.5,2457.2,3.85939961]
[1751195126595,0.94551276,2457.4,2457.2,3.85939961]
[1751195126797,0.7014,2457.5,2457.2,3.85939961]
[1751195127093,0.94551276,2457.4,2457.2,3.85939961]
[1751195127297,0.7014,2457.5,2457.2,3.85939961]
[1751195127597,0.94552235,2457.4,2457.2,3.85939961]
[1751195127797,0.7014,2457.5,2457.2,3.85939961]
[1751195127998,0.94559942,2457.4,2457.2,3.85939961]
[1751195128297,0.7014,2457.5,2457.2,3.85939961]
[1751195128298,0.7014,2457.5,2457.2,3.16249961]
[1751195128497,0.94561395,2457.4,2457.2,3.16249961]
[1751195128694,1.4256,2457.5,2457.2,3.16249961]
[1751195128998,0.94561428,2457.4,2457.2,3.16249961]
[1751195129196,1.4256,2457.5,2457.2,3.16249961]
[1751195129398,0.94563426,2457.4,2457.2,3.16249961]
[1751195129608,1.4256,2457.5,2457.2,3.16249961]
[1751195129800,0.94563425,2457.4,2457.2,3.16249961]
[1751195130000,1.4256,2457.5,2457.2,3.16249961]
[1751195130200,0.94563425,2457.4,2457.2,3.16249961]
[1751195130403,1.4256,2457.5,2457.2,0.7287]
[1751195130707,0.94565158,2457.4,2457.1,2.43379961]
[1751195130899,7.20165158,2457.3,2457.1,2.43379961]
[1751195131099,6.256,2457.3,2457.1,2.43379961]
[1751195131301,0.7291,2457.2,2457.1,2.43379961]
[1751195131796,0.7291,2457.2,2457.0,2.43379961]
[1751195131797,9.88270673,2457.2,2457.0,2.43379961]
[1751195132009,1.63004244,2457.1,2456.9,2.43379961]
[1751195132300,6.256,2457.0,2456.9,2.43379961]
[1751195135304,6.256,2457.0,2456.8,2.43379961]
[1751195135613,3.886,2456.9,2456.8,2.43379961]
[1751195137705,11.08748292,2456.9,2456.5,4.58119961]
[1751195137905,0.94548292,2456.8,2456.6,1.4483]
[1751195138104,10.142,2456.9,2456.6,1.4483]
[1751195142010,3.886,2456.9,2456.6,1.4483]
[1751195142309,6.257,2456.8,2456.6,1.4483]
[1751195156620,6.257,2456.8,2456.5,0.7195]
[1751195157827,3.2078,2456.6,2456.5,0.7195]
[1751195159226,3.2078,2456.6,2456.5,2.0999]
[1751195162827,3.2078,2456.6,2456.5,0.7195]
[1751195167231,4.15805026,2456.6,2456.5,0.7195]
[1751195168635,4.86595026,2456.6,2456.5,0.7195]
[1751195171828,4.15805026,2456.6,2456.5,0.7195]
[1751195175337,4.15805026,2456.6,2456.4,2.43379961]
[1751195175537,7.90265026,2456.5,2456.0,3.10139961]
[1751195175841,3.2078,2456.3,2456.0,3.10139961]
[1751195176033,0.95025026,2456.2,2456.0,3.10139961]
[1751195176235,3.2078,2456.3,2456.0,3.10139961]
[1751195176434,3.2078,2456.3,2456.1,2.43379961]
[1751195178041,3.2078,2456.3,2456.2,3.80909961]
[1751195178436,3.2078,2456.3,2456.2,2.43379961]
[1751195178639,3.928,2456.3,2456.1,2.43379961]
[1751195178834,0.6893,2456.2,2456.1,2.43379961]
[1751195179342,0.6893,2456.2,2456.0,3.10139961]
[1751195179541,0.6893,2456.2,2456.0,2.43379961]
[1751195181345,6.255,2456.1,2455.9,2.43379961]
[1751195181547,7.6516,2456.1,2455.9,2.43379961]
[1751195181747,2.0613,2456.0,2455.9,2.43379961]
[1751195182246,2.0613,2456.0,2455.8,2.43379961]
[1751195182839,2.0613,2456.0,2455.7,2.43379961]
[1751195183241,2.0613,2456.0,2455.6,2.43379961]
[1751195183645,2.0613,2456.0,2455.5,6.34299961]
[1751195184248,5.2691,2456.0,2455.5,3.9092]
[1751195184550,1.4574,2455.9,2455.5,3.9092]
[1751195184748,6.252,2455.8,2455.5,3.9092]
[1751195184951,6.9508,2455.8,2455.5,3.9092]
[1751195185253,6.9508,2455.8,2454.9,3.2455595]
[1751195185254,3.2078,2455.6,2454.9,3.2455595]
[1751195185451,3.2078,2455.3,2455.0,0.6849]
[1751195185652,6.252,2455.2,2455.1,1.3487]
[1751195185854,3.2078,2455.3,2455.1,1.3487]
[1751195186155,6.252,2455.2,2455.1,1.3487]
[1751195188851,3.2078,2455.3,2455.1,1.3487]
[1751195189054,9.4608,2455.3,2455.2,0.7252]
[1751195208668,6.253,2455.3,2455.2,0.7252]
[1751195208863,9.4608,2455.3,2455.2,0.7252]
[1751195211566,9.4608,2455.3,2455.2,2.111]
[1751195213175,3.2078,2455.3,2455.2,2.111]
[1751195214172,3.2078,2455.3,2455.2,4.54297331]
[1751195218269,4.17038683,2455.3,2455.2,4.54297331]
[1751195226176,4.17038683,2455.3,2455.2,2.111]
[1751195226370,3.2078,2455.3,2455.2,2.111]
[1751195227377,3.2078,2455.3,2455.0,3.9304595]
[1751195228277,3.2078,2455.3,2455.0,5.2651595]
[1751195228778,3.8891,2455.3,2455.0,5.2651595]
[1751195233782,3.8891,2455.3,2455.2,2.44270225]
[1751195233982,5.53964681,2455.3,2455.2,2.44270225]
[1751195236886,5.53964681,2455.3,2455.1,2.44270225]
[1751195237178,0.96224681,2455.2,2455.1,2.44270225]
[1751195237387,4.5774,2455.3,2455.1,2.44270225]
[1751195240483,4.5774,2455.3,2455.1,3.84840225]
[1751195242486,3.2078,2455.3,2455.1,3.84840225]
[1751195243784,9.4608,2455.3,2455.1,3.84840225]
[1751195243989,9.4608,2455.3,2455.2,3.88610225]
[1751195247989,6.253,2455.3,2455.2,3.88610225]
[1751195248190,9.4608,2455.3,2455.2,3.88610225]
[1751195250092,6.253,2455.3,2455.2,3.88610225]
[1751195250294,9.4608,2455.3,2455.2,3.88610225]
[1751195250892,6.253,2455.3,2455.2,3.88610225]
[1751195251193,9.4608,2455.3,2455.2,3.88610225]
[1751195251786,3.2078,2455.3,2455.2,3.88610225]
[1751195255896,6.9316,2455.5,2455.2,3.88610225]
[1751195256094,0.96159847,2455.4,2455.3,2.1217]
[1751195256398,3.2078,2455.4,2455.3,4.56440225]
[1751195256591,3.2078,2455.4,2455.3,2.1217]
[1751195258213,3.2078,2455.4,2455.3,4.56279012]
[1751195260610,3.2078,2455.5,2455.3,4.56279012]
[1751195260808,3.2078,2455.5,2455.4,1.3214]
[1751195261110,3.2078,2455.5,2455.4,2.0419]
[1751195261815,3.2078,2455.5,2455.4,4.48299012]
[1751195262616,3.2078,2455.8,2455.4,4.48299012]
[1751195262915,0.96115435,2455.7,2455.5,1.3214]
[1751195263118,3.2078,2455.8,2455.5,1.3214]
[1751195263413,3.2078,2455.8,2455.6,0.6679]
[1751195263605,3.2078,2455.8,2455.7,1.4462]
[1751195266511,3.2078,2455.8,2455.6,0.6679]
[1751195268718,3.2078,2455.8,2455.7,1.3743]
[1751195270419,3.2078,2456.1,2455.7,1.3743]
[1751195270719,3.2078,2456.1,2455.8,0.698]
[1751195271123,3.2078,2456.1,2455.9,2.092]
[1751195277328,3.2078,2456.1,2455.5,3.2078]
[1751195277528,0.7215,2456.0,2455.5,9.4568]
[1751195277729,0.7215,2456.0,2455.6,2.1404]
[1751195281529,3.9293,2456.0,2455.6,2.1404]
[1751195281729,3.9293,2456.0,2455.7,1.4066]
[1751195282233,0.7215,2456.0,2455.7,1.4066]
[1751195282432,3.9293,2456.0,2455.7,1.4066]
[1751195288036,3.9293,2456.0,2455.6,0.7055]
[1751195290939,3.9293,2456.0,2455.6,2.0865]
[1751195295548,0.96088936,2455.8,2455.6,2.0865]
[1751195295844,3.9293,2456.0,2455.6,5.33898367]
[1751195296047,3.9293,2456.0,2455.9,2.43936147]
[1751195298347,3.9293,2456.0,2455.7,3.25248367]
[1751195298542,3.9293,2456.0,2455.9,2.44112661]
[1751195298748,4.88998553,2456.0,2455.8,2.44112661]
[1751195298950,0.6728,2455.9,2455.8,2.44112661]
[1751195299449,0.6728,2455.9,2455.8,2.44149156]
[1751195300344,2.0038,2455.9,2455.8,2.44149156]
[1751195300749,7.96443895,2455.9,2455.8,2.44149156]
[1751195300949,7.96443895,2455.9,2455.7,2.44149156]
[1751195301250,1.331,2455.8,2455.7,2.44149156]
[1751195301649,7.579,2455.8,2455.7,2.44149156]
[1751195306758,7.579,2455.8,2455.2,15.46056543]
[1751195306759,8.53918649,2455.8,2455.5,2.44149156]
[1751195306953,3.2078,2455.6,2455.5,2.44149156]
[1751195311262,3.2078,2455.6,2455.3,1.352]
[1751195311263,3.2078,2455.6,2455.4,2.44149156]
[1751195314565,6.248,2455.5,2455.2,2.44149156]
[1751195314762,3.2078,2455.3,2455.2,2.44149156]
[1751195315560,4.5616,2455.3,2455.2,2.44149156]
[1751195317668,9.5616,2455.3,2454.4,4.06560458]
[1751195317861,3.2078,2454.6,2454.5,0.6792]
[1751195319058,3.9131,2454.6,2454.2,4.74400458]
[1751195319264,3.9131,2454.6,2454.3,0.6792]
[1751195319561,3.9131,2454.6,2454.3,2.1453]
[1751195320567,3.9131,2454.6,2454.4,1.4661]
[1751195323165,9.4578,2454.6,2454.4,1.4661]
[1751195324174,6.25,2454.6,2454.4,1.4661]
[1751195324469,9.4578,2454.6,2454.4,1.4661]
[1751195326170,6.25,2454.6,2454.4,1.4661]
[1751195326372,9.4578,2454.6,2454.4,1.4661]
[1751195331486,6.25,2454.6,2454.4,1.4661]
[1751195331687,3.2078,2454.6,2454.4,1.4661]
[1751195340092,6.253,2454.8,2454.4,1.4661]
[1751195340389,3.2078,2454.6,2454.4,1.4661]
[1751195340794,0.7018,2455.0,2454.4,1.4661]
[1751195340994,3.2078,2454.6,2454.4,1.4661]
[1751195342692,6.253,2454.9,2454.4,1.4661]
[1751195342995,3.2078,2454.6,2454.4,1.4661]
[1751195345197,6.253,2454.8,2454.4,1.4661]
[1751195346499,3.2078,2454.9,2454.4,1.4661]
[1751195346696,6.253,2454.8,2454.4,1.4661]
[1751195347598,0.6668,2454.7,2454.4,1.4661]
[1751195349398,3.8746,2454.7,2454.4,1.4661]
[1751195353507,3.8746,2454.7,2454.3,3.9199431]
[1751195353708,3.8746,2454.7,2454.3,0.6792]
[1751195354207,3.8746,2454.7,2454.3,2.1463]
[1751195356509,3.2078,2455.0,2454.4,3.2078]
[1751195356710,1.01405092,2454.9,2454.5,1.4486]
[1751195357012,1.01405092,2454.8,2454.5,1.4486]
[1751195357203,3.9311,2455.0,2454.6,0.6607]
[1751195357402,1.01395247,2454.9,2454.6,1.388]
[1751195357611,1.01395247,2454.8,2454.6,1.388]
[1751195357909,10.1841,2455.0,2454.6,1.388]
[1751195358210,1.01393465,2454.9,2454.6,1.388]
[1751195358413,1.01393465,2454.8,2454.6,1.388]
[1751195358615,10.1841,2455.0,2454.6,1.388]
[1751195358804,1.01389844,2454.9,2454.6,1.388]
[1751195359116,1.01389844,2454.8,2454.6,1.388]
[1751195359315,10.1841,2455.0,2454.6,1.388]
[1751195359516,1.01385852,2454.9,2454.6,1.388]
[1751195359709,1.01385852,2454.8,2454.6,1.388]
[1751195359910,10.1841,2455.0,2454.6,1.388]
[1751195360213,1.0138704,2454.9,2454.7,1.3582]
[1751195360410,3.9311,2455.0,2454.7,1.3582]
[1751195360610,1.01377671,2454.9,2454.7,1.3582]
[1751195360908,3.2078,2455.0,2454.7,1.3582]
[1751195361112,3.2078,2455.4,2454.7,15.819]
[1751195361410,3.2078,2455.4,2454.7,14.0597431]
[1751195361605,3.2078,2455.4,2454.8,1.3688]
[1751195362109,3.2078,2455.4,2454.9,0.7137]
[1751195362308,3.2078,2455.4,2455.0,7.6218]
[1751195362504,3.2078,2455.4,2455.1,2.0395]
[1751195362702,3.2078,2455.4,2455.2,1.3688]
[1751195363008,3.2078,2455.4,2455.3,6.253]
[1751195363207,3.2078,2455.4,2455.3,6.9627]
[1751195363502,3.2078,2455.4,2455.3,11.9627]
[1751195363711,3.2078,2455.4,2455.3,13.3315]
[1751195364415,3.00850585,2455.8,2455.3,13.3315]
[1751195364617,0.6843,2456.1,2455.7,3.2078]
[1751195364915,0.6843,2456.1,2456.0,3.2078]
[1751195366217,0.68,2456.3,2456.0,3.2078]
[1751195366413,1.356,2456.3,2456.0,3.2078]
[1751195367408,2.6793,2456.3,2456.0,3.2078]
[1751195368915,1.3233,2456.2,2456.0,3.2078]
[1751195370016,1.3233,2456.2,2456.1,3.2078]
[1751195379224,1.3233,2456.2,2456.0,3.2078]
[1751195382524,1.3233,2456.2,2455.7,3.2078]
[1751195382720,6.264,2456.1,2455.7,3.2078]
[1751195382926,1.4469,2456.0,2455.7,3.2078]
[1751195383317,0.7235,2455.9,2455.7,3.2078]
[1751195387527,3.8878,2456.3,2455.7,3.2078]
[1751195387728,6.264,2456.1,2455.7,3.2078]
[1751195388028,6.264,2456.1,2455.8,0.6877]
[1751195388529,7.654,2456.1,2455.7,3.2078]
[1751195388728,1.39,2456.0,2455.7,3.2078]
[1751195394435,6.264,2456.1,2455.7,3.2078]
[1751195394830,0.733,2456.2,2455.7,3.2078]
[1751195395029,6.264,2456.1,2455.7,3.2078]
[1751195396437,7.6766,2456.1,2455.7,3.2078]
[1751195400831,7.6766,2456.1,2455.8,0.6711]
[1751195401542,0.733,2456.2,2455.8,0.6711]
[1751195401742,7.25664477,2456.1,2455.8,0.6711]
[1751195401944,6.25,2456.1,2455.8,0.6711]
[1751195403942,6.25,2456.1,2455.8,2.0507]
[1751195404144,0.733,2456.2,2455.8,2.0507]
[1751195404345,1.00668303,2456.1,2455.9,1.3796]
[1751195404642,0.733,2456.2,2455.9,1.3796]
[1751195404849,3.2078,2456.3,2455.9,1.3796]
[1751195405146,1.00677341,2456.2,2455.9,1.3796]
[1751195405340,3.2078,2456.3,2455.9,1.3796]
[1751195405541,1.00682691,2456.2,2455.9,1.3796]
[1751195405740,3.2078,2456.3,2455.9,1.3796]
[1751195405948,1.00692689,2456.2,2455.9,1.3796]
[1751195406138,6.917,2456.4,2456.0,3.2078]
[1751195406338,1.006952,2456.3,2456.0,3.2078]
[1751195406544,6.917,2456.4,2456.0,3.2078]
[1751195406747,1.00691077,2456.3,2456.0,3.2078]
[1751195406935,6.917,2456.4,2456.0,3.2078]
[1751195407139,1.00690679,2456.3,2456.0,3.2078]
[1751195407338,6.917,2456.4,2456.0,3.2078]
[1751195407540,1.00688618,2456.3,2456.0,3.2078]
[1751195407746,6.917,2456.4,2456.0,3.2078]
[1751195407946,1.00688621,2456.3,2456.0,3.2078]
[1751195408160,6.917,2456.4,2456.0,3.2078]
[1751195408360,6.917,2456.4,2456.1,2.1128]
[1751195408956,0.667,2456.4,2456.2,0.6782]
[1751195413168,10.1757,2456.6,2456.2,2.0394]
[1751195413466,1.00621468,2456.5,2456.2,2.0394]
[1751195413770,4.6433,2456.6,2456.2,2.0394]
[1751195413971,1.005955,2456.5,2456.2,2.0394]
[1751195414157,4.6433,2456.6,2456.2,2.0394]
[1751195414362,1.00595907,2456.5,2456.2,2.0394]
[1751195414563,4.6433,2456.6,2456.2,2.0394]
[1751195414764,1.00584103,2456.5,2456.2,2.0394]
[1751195414963,3.2078,2456.3,2456.1,0.6633]
[1751195415371,0.6754,2456.2,2456.1,0.6633]
[1751195415671,0.6754,2456.2,2455.8,3.9036431]
[1751195415866,0.6754,2456.2,2455.8,5.9658431]
[1751195418777,0.6754,2456.2,2455.8,2.7251]
[1751195420374,3.2078,2456.1,2455.8,2.7251]
[1751195426777,3.8832,2456.2,2455.8,2.7251]
[1751195427476,3.8832,2456.2,2455.8,5.9658431]
[1751195428084,0.6754,2456.2,2455.8,5.9658431]
[1751195428284,3.8832,2456.2,2455.8,5.9658431]
[1751195428786,0.6754,2456.2,2455.8,5.9658431]
[1751195429281,3.8832,2456.2,2455.8,5.9658431]
[1751195430285,3.8832,2456.2,2455.8,5.84757126]
[1751195433787,0.6754,2456.2,2455.8,5.84757126]
[1751195433987,3.8832,2456.2,2455.8,5.84757126]
[1751195435692,3.8832,2456.2,2455.8,3.2407431]
[1751195435893,1.9951,2456.1,2455.8,3.2407431]
[1751195447396,1.9951,2456.1,2455.9,3.2407431]
[1751195449396,0.6693,2456.1,2455.9,3.2407431]
[1751195458301,3.8832,2456.2,2455.9,3.2407431]
[1751195461804,3.8832,2456.2,2455.8,3.2407431]
[1751195462798,3.8832,2456.2,2455.9,0.6822]
[1751195470810,3.8832,2456.2,2455.9,1.3463]
[1751195473515,4.5562,2456.2,2455.9,1.3463]
[1751195473913,1.3484,2456.2,2455.9,1.3463]
[1751195474114,3.2078,2456.1,2455.9,1.3463]
[1751195474708,3.2078,2456.1,2455.7,3.2407431]
[1751195474906,4.6635,2456.1,2455.7,3.2407431]
[1751195476715,10.9115,2456.1,2455.7,3.2407431]
[1751195479217,1.01107568,2456.0,2455.5,13.4163431]
[1751195479417,1.01107568,2455.9,2455.5,14.8121431]
[1751195479616,10.9115,2456.1,2455.5,14.8121431]
[1751195479816,0.7337,2455.8,2455.5,14.8121431]
[1751195480920,0.7337,2455.8,2455.5,11.6043431]
[1751195481121,0.7337,2455.8,2455.5,8.3636]
[1751195489733,3.2078,2455.7,2455.5,0.7208]
[1751195491130,3.2078,2455.7,2455.4,0.6964]
[1751195491337,5.38,2455.7,2455.2,3.9487431]
[1751195491538,3.2078,2455.4,2455.2,3.9487431]
[1751195491834,3.2078,2455.4,2455.2,0.708]
[1751195492229,3.2078,2455.4,2455.1,3.2407431]
[1751195492524,3.2078,2455.4,2455.1,3.9548431]
[1751195493128,3.2078,2455.4,2455.1,0.7141]
[1751195505841,4.6207,2455.4,2455.1,0.7141]
[1751195507349,4.6207,2455.4,2454.8,6.4485431]
[1751195507542,2.1353,2455.3,2454.8,7.1136431]
[1751195507847,1.3292,2455.2,2454.8,7.1136431]
[1751195508050,2.0493,2455.2,2454.8,7.1136431]
[1751195508349,2.0493,2455.2,2454.8,3.8729]
[1751195508850,3.2078,2454.9,2454.8,0.6651]
[1751195509050,3.2078,2454.9,2454.7,0.6697]
[1751195509251,3.2078,2454.9,2454.6,3.2407431]
[1751195509445,0.7201,2454.8,2454.6,3.2407431]
[1751195509643,0.7201,2454.8,2454.5,3.9058431]
[1751195511160,0.7201,2454.8,2454.5,0.6651]
[1751195511351,2.1658,2454.8,2454.5,0.6651]
[1751195511856,2.8654,2454.8,2454.5,0.6651]
[1751195513056,1.4197,2454.8,2454.5,0.6651]
[1751195516851,2.774,2454.8,2454.4,3.2407431]
[1751195517260,3.2078,2454.5,2454.3,3.2407431]
[1751195517761,0.6631,2454.4,2454.3,3.2407431]
[1751195518061,0.6631,2454.4,2454.2,3.2407431]
[1751195519265,0.6631,2454.4,2454.1,3.9387431]
[1751195519660,0.6631,2454.4,2454.1,0.698]
[1751195536871,3.2078,2454.5,2454.1,0.698]
[1751195537065,9.4558,2454.8,2454.2,4.6013]
[1751195537270,9.4558,2454.8,2454.3,25.9475]
[1751195537271,3.2078,2454.8,2454.3,25.9475]
[1751195537472,3.2078,2454.8,2454.4,2.0764]
[1751195537671,3.2078,2454.8,2454.5,1.3935]
[1751195542278,3.8932,2454.9,2454.5,1.3935]
[1751195545181,0.6854,2454.9,2454.5,1.3935]
[1751195545480,3.8932,2454.9,2454.5,1.3935]
[1751195545980,3.8932,2454.9,2454.4,1.3516]
[1751195546180,5.3006,2454.9,2454.4,1.3516]
[1751195546382,5.3006,2454.9,2454.4,0.6829]
[1751195546571,1.4074,2454.8,2454.4,0.6829]
[1751195547278,3.2078,2454.5,2454.1,10.95342775]
[1751195547478,0.6753,2454.4,2454.2,24.551]
[1751195550087,0.6753,2454.4,2454.0,1.3858]
[1751195550283,0.6753,2454.4,2454.0,25.9368]
[1751195550483,2.1005,2454.4,2454.0,25.9368]
[1751195556604,0.6753,2454.4,2454.0,27.2598]
[1751195560812,0.6753,2454.4,2454.0,1.3858]
[1751195561007,2.0015,2454.4,2454.1,24.553]
[1751195561212,2.0015,2454.4,2454.0,25.9388]
[1751195561413,1.3262,2454.3,2454.0,25.9388]
[1751195561805,1.3262,2454.3,2454.0,24.553]
[1751195562016,2.0007,2454.3,2454.0,24.553]
[1751195562213,2.0007,2454.3,2453.9,6.45132775]
[1751195562405,1.3262,2454.2,2454.0,24.553]
[1751195563807,0.681,2454.1,2454.0,24.553]
[1751195571613,3.8823,2454.3,2454.0,24.553]
[1751195571914,4.5867,2454.3,2454.0,24.553]
[1751195572109,4.5867,2454.3,2454.1,0.6784]
[1751195578520,6.0352,2454.3,2454.1,0.6784]
[1751195578721,2.8274,2454.3,2454.1,0.6784]
[1751195578920,6.0352,2454.3,2454.1,0.6784]
[1751195582216,6.0352,2454.3,2453.8,1.3314]
[1751195582516,6.0352,2454.3,2453.9,0.6876]
[1751195585226,3.2078,2454.0,2453.7,3.91312775]
[1751195585425,3.2078,2454.0,2453.8,0.7229]
[1751195586024,0.7176,2453.9,2453.8,0.7229]
[1751195586929,0.7176,2453.9,2453.5,3.24352775]
[1751195587130,0.7176,2453.9,2453.6,0.6926]
[1751195590034,3.2078,2454.0,2453.6,0.6926]
[1751195590236,3.2078,2454.0,2453.7,1.4391]
[1751195590435,3.2078,2454.0,2453.8,0.6661]
[1751195591137,3.2078,2454.0,2453.9,0.6615]
[1751195591937,3.8823,2454.3,2453.9,0.6615]
[1751195592134,7.25653972,2454.2,2453.9,0.6615]
[1751195592330,6.248,2454.2,2453.9,0.6615]
[1751195592731,6.9725,2454.2,2453.9,0.6615]
[1751195597341,0.7245,2454.2,2453.9,0.6615]
[1751195597645,9.4558,2454.3,2453.9,2.1129]
[1751195597846,1.01161228,2454.2,2453.9,2.1129]
[1751195598043,0.6725,2454.2,2453.9,2.1129]
[1751195602057,0.6725,2454.2,2453.9,0.6615]
[1751195614165,2.1036,2454.2,2453.9,0.6615]
[1751195614357,2.1036,2454.2,2453.8,0.6661]
[1751195615764,2.1036,2454.2,2453.7,6.45132775]
[1751195615967,3.2078,2454.0,2453.6,3.94492775]
[1751195616163,1.4243,2453.9,2453.6,3.94492775]
[1751195616368,2.1042,2453.9,2453.6,3.94492775]
[1751195616866,2.1042,2453.9,2453.6,0.7014]
[1751195617569,2.1042,2453.9,2453.4,12.69832775]
[1751195618462,1.01349423,2453.8,2453.4,9.4548]
[1751195618663,2.1042,2453.9,2453.4,9.4548]
[1751195618858,1.0134956,2453.8,2453.4,9.4548]
[1751195619064,2.1042,2453.9,2453.4,9.4548]
[1751195619265,1.0134956,2453.8,2453.4,9.4548]
[1751195619464,2.1042,2453.9,2453.4,9.4548]
[1751195619671,1.01334037,2453.8,2453.4,10.819]
[1751195619870,2.1042,2453.9,2453.4,10.819]
[1751195620070,1.01334216,2453.8,2453.4,10.819]
[1751195620269,2.1042,2453.9,2453.4,10.819]
[1751195620471,1.01309118,2453.8,2453.4,10.819]
[1751195620670,2.1042,2453.9,2453.4,10.819]
[1751195620873,1.0130847,2453.8,2453.4,10.819]
[1751195621175,2.1042,2453.9,2453.4,10.819]
[1751195621471,1.01310058,2453.8,2453.4,10.819]
[1751195621770,2.1042,2453.9,2453.4,10.819]
[1751195621972,1.01293986,2453.8,2453.4,10.819]
[1751195622166,2.1042,2453.9,2453.4,10.819]
[1751195622372,1.01278874,2453.8,2453.4,10.819]
[1751195622565,2.1042,2453.9,2453.4,10.819]
[1751195622766,1.01278858,2453.8,2453.4,10.819]
[1751195622972,2.1042,2453.9,2453.4,7.6112]
[1751195623172,1.01278858,2453.8,2453.4,7.6112]
[1751195623373,5.312,2453.9,2453.4,7.6112]
[1751195623773,1.01283534,2453.8,2453.4,7.6112]
[1751195623965,5.312,2453.9,2453.4,7.6112]
[1751195624162,1.01283534,2453.8,2453.4,7.6112]
[1751195624371,5.312,2453.9,2453.4,7.6112]
[1751195624570,1.01245681,2453.8,2453.4,7.6112]
[1751195624771,5.312,2453.9,2453.4,7.6112]
[1751195624971,1.01245681,2453.8,2453.4,7.6112]
[1751195625172,5.312,2453.9,2453.4,7.6112]
[1751195625372,1.01233629,2453.8,2453.4,7.6112]
[1751195625671,5.312,2453.9,2453.4,7.6112]
[1751195625872,1.01233631,2453.8,2453.4,7.6112]
[1751195626074,5.312,2453.9,2453.4,7.6112]
[1751195626274,1.01272147,2453.8,2453.4,7.6112]
[1751195626474,5.312,2453.9,2453.4,7.6112]
[1751195626673,1.0126184,2453.8,2453.4,7.6112]
[1751195626876,5.312,2453.9,2453.4,7.6112]
[1751195627072,1.01261789,2453.8,2453.4,7.6112]
[1751195627273,5.312,2453.9,2453.4,7.6112]
[1751195627676,2.1042,2453.9,2453.4,7.6112]
[1751195627878,5.312,2453.9,2453.4,7.6112]
[1751195628983,2.1042,2453.9,2453.4,7.6112]
[1751195629281,5.312,2453.9,2453.4,7.6112]
[1751195633583,5.312,2453.9,2453.5,1.4652]
[1751195634489,5.312,2453.9,2453.6,0.7107]
[1751195636189,3.8877,2453.9,2453.6,0.7107]
[1751195639290,1.01239637,2453.8,2453.6,0.7107]
[1751195639590,3.8877,2453.9,2453.6,0.7107]
[1751195639791,1.01239179,2453.8,2453.6,0.7107]
[1751195640089,3.8877,2453.9,2453.6,0.7107]
[1751195640286,1.01239187,2453.8,2453.6,0.7107]
[1751195640484,3.8877,2453.9,2453.6,0.7107]
[1751195640679,1.01248357,2453.8,2453.6,0.7107]
[1751195640884,3.8877,2453.9,2453.6,0.7107]
[1751195641079,1.01248317,2453.8,2453.6,0.7107]
[1751195641283,3.8877,2453.9,2453.6,0.7107]
[1751195641484,1.0126124,2453.8,2453.6,0.7107]
[1751195641688,3.8877,2453.9,2453.6,0.7107]
[1751195641887,1.01261419,2453.8,2453.6,0.7107]
[1751195642088,3.8877,2453.9,2453.6,0.7107]
[1751195642288,1.01261382,2453.8,2453.6,0.7107]
[1751195642479,3.8877,2453.9,2453.6,0.7107]
[1751195642679,1.01277425,2453.8,2453.6,0.7107]
[1751195642889,3.8877,2453.9,2453.6,0.7107]
[1751195643083,1.01277245,2453.8,2453.6,0.7107]
[1751195643283,3.8877,2453.9,2453.6,0.7107]
[1751195643489,1.01295833,2453.8,2453.6,0.7107]
[1751195643690,3.8877,2453.9,2453.6,0.7107]
[1751195643879,1.01296074,2453.8,2453.6,0.7107]
[1751195644087,3.8877,2453.9,2453.6,0.7107]
[1751195644388,1.01296083,2453.8,2453.6,0.7107]
[1751195644591,3.8877,2453.9,2453.6,0.7107]
[1751195644782,1.01321851,2453.8,2453.6,0.7107]
[1751195644981,3.8877,2453.9,2453.6,0.7107]
[1751195645187,1.01321851,2453.8,2453.6,0.7107]
[1751195645494,1.01358438,2453.7,2453.6,0.7107]
[1751195648196,1.01358438,2453.7,2453.3,13.37872775]
[1751195648493,0.6903,2453.6,2453.4,0.7137]
[1751195651793,0.6903,2453.6,2453.4,2.1414]
[1751195652198,3.2078,2453.9,2453.4,2.1414]
[1751195652391,1.7144477,2453.8,2453.4,2.1414]
[1751195652592,1.0143477,2453.7,2453.4,2.1414]
[1751195652891,0.7001,2453.8,2453.4,2.1414]
[1751195653187,1.01434733,2453.7,2453.4,2.1414]
[1751195653392,0.7001,2453.8,2453.4,2.1414]
[1751195653597,1.01442528,2453.7,2453.4,2.1414]
[1751195653799,0.7001,2453.8,2453.4,2.1414]
[1751195653989,1.01441988,2453.7,2453.4,2.1414]
[1751195654193,0.7001,2453.8,2453.4,2.1414]
[1751195654499,1.01442428,2453.7,2453.4,2.1414]
[1751195654803,0.7001,2453.8,2453.4,2.1414]
[1751195655100,1.01442312,2453.7,2453.4,2.1414]
[1751195655300,0.7001,2453.8,2453.4,2.1414]
[1751195655608,1.01442306,2453.7,2453.4,2.1414]
[1751195655799,0.7001,2453.8,2453.4,2.1414]
[1751195656000,1.01442289,2453.7,2453.4,2.1414]
[1751195656202,0.7001,2453.8,2453.4,2.1414]
[1751195656401,1.01442293,2453.7,2453.4,2.1414]
[1751195656601,0.7001,2453.8,2453.4,2.1414]
[1751195656800,1.01442293,2453.7,2453.4,2.1414]
[1751195657001,0.7001,2453.8,2453.4,2.1414]
[1751195657200,1.01510857,2453.7,2453.4,2.1414]
[1751195657499,0.7001,2453.8,2453.4,2.1414]
[1751195657700,1.01510823,2453.7,2453.4,2.1414]
[1751195658002,0.7001,2453.8,2453.4,2.1414]
[1751195658202,1.01510821,2453.7,2453.4,2.1414]